Cogmind - Beta 16.1 @@@ ROGUE MODE // 2026.04.25 @ 21:13:56 Player: mephiles96 Result: Destroyed by Y1-ZNH(R) with Subdweller Beam Cannon Performance ------------- Evolutions (0) 0 Regions Visited (2) 400 Robots Destroyed (29) 145 Value Destroyed (529) 529 Prototype IDs (13) 260 Alien Tech Used (0) 0 Bonus (0) 0 TOTAL SCORE: 1334 Bonus ------- None Cogmind --------- Core Integrity 0/250 Matter 154/300 Energy 121/125 System Corruption 2% Temperature Cool (17) Movement Treading (160) Location -10/Subcaves Parts ------- > --- POWER (1) -------- Light Ion Engine > --- PROPULSION (2) --- Light Treads Light Treads > --- UTILITY (2) ------ Large Storage Unit Makeshift Kinetic Plating > --- WEAPON (2) ------- Battle Rifle Makeshift Axe > --- INVENTORY (15) --- Light Ion Engine Compact Wheel Compact Wheel Improved Hover Unit Improved Hover Unit Improved Hover Unit Improved Hover Unit Structural Scanner Seismic Detector ECM Suite Heavy Assault Rifle Heavy Assault Rifle Autogun Rocket Launcher Datajack Peak State ------------ > --- POWER ------------ Light Ion Engine > --- PROPULSION ------- Light Treads Light Treads > --- UTILITY ---------- Large Storage Unit Makeshift Kinetic Plating > --- WEAPON ----------- Battle Rifle Makeshift Axe > --- INVENTORY -------- Light Ion Engine Compact Wheel Compact Wheel Improved Hover Unit Improved Hover Unit Improved Hover Unit Improved Hover Unit Structural Scanner Seismic Detector ECM Suite Heavy Assault Rifle Heavy Assault Rifle Rocket Launcher Datajack [Rating: 16] Favorites ----------- Power Light Ion Engine Engine Light Ion Engine Power Core Light Nuclear Core Propulsion Light Treads Treads Light Treads Leg Aluminum Leg Wheel Compact Wheel Utility Large Storage Unit Device Improved Terrain Scanner Storage Large Storage Unit Processor Visual Processing Unit Protection Makeshift Kinetic Plating Weapon Autogun Energy Gun Medium Laser Ballistic Gun Autogun Launcher Rocket Launcher Special Weapon Mining Laser Slashing Weapon Makeshift Axe Build | -11 -10 -10 ------- Run | Yrd Mat Sub Slots Evolved . | . . . Power . | . . . Propulsion . | . . . Utility . | . . . Weapon . | . . . Parts Attached 22 | 3 15 4 Power 2 | . 2 . Engine 1 | . 1 . Core 1 | . 1 . Reactor . | . . . Propulsion 4 | . 3 1 Treads 3 | . 3 . Leg . | . . . Wheel 1 | . . 1 Hover . | . . . Flight . | . . . Utility 5 | 2 2 1 Device 2 | 2 . . Storage 1 | . 1 . Processor 1 | . 1 . Hackware . | . . . Protection 1 | . . 1 Artifact . | . . . Weapon 11 | 1 8 2 Energy Gun . | . . . Energy Cannon . | . . . Ballistic Gun 8 | 1 6 1 Ballistic Cannon . | . . . Launcher 1 | . 1 . Special Weapon 1 | . 1 . Impact Weapon . | . . . Slashing Weapon 1 | . . 1 Piercing Weapon . | . . . Special Melee Weapon . | . . . Unidentified Prototypes . | . . . Parts Lost 5 | . 4 1 Power 2 | . 2 . Propulsion 2 | . 1 1 Utility 1 | . 1 . Weapon . | . . . Highest Loss Streak 2 | . 2 1 To Critical Strikes . | . . . Average Backups 13 | 6 12 14 Power 1 | 1 1 1 Propulsion 6 | 4 6 6 Utility 2 | . 1 3 Weapon 3 | 1 3 3 Tool/Special . | . . . Unused Backups 18 | 5 3 10 Power 3 | 1 1 1 Propulsion 8 | 2 1 5 Utility 3 | 1 . 2 Weapon 3 | 1 1 1 Tool/Special 1 | . . 1 Average Slot Usage (%) 96 | . 93 99 Engine 11 | . 8 14 Core 2 | . 5 . Treads 26 | . 24 27 Leg 1 | . 3 . Device 3 | . 6 . Storage 14 | . 14 14 Processor 5 | . 1 8 Protection 2 | . . 5 Ballistic Gun 21 | . 26 16 Slashing Weapon 5 | . . 10 Peak Build Rating 16 | 9 15 16 Average Rating 12 | 7 11 14 On Entrance 8 | 6 8 12 Avg Prop Armor Cover (%) . | . . . Naked Turns . | . . . Heaviest Build 35 | 12 32 35 Greatest Support 40 | 20 40 40 Greatest Overweight (x) 1 | . 1 1 Average Overweight (x) . | . . . Largest Inventory Capacity 15 | 8 15 15 Average Capacity 13 | 8 13 15 Most Carried 15 | 8 15 15 Average Carried 13 | 6 12 14 Final Capacity 15 | 8 15 15 Final Carried 15 | 8 15 15 Class Distribution -------------------- 97% | Mutant Dominant Class ---------------- Mutant | -10/Materials Mutant | -10/Subcaves Resources | -11 -10 -10 ----------- Run | Yrd Mat Sub Matter Collected 1015 | 258 609 148 Remotely . | . . . Salvage Created 700 | 126 543 31 Parts 60 | 7 47 6 Haulers Intercepted 2 | . 2 . Recyclers Shooed . | . . . Parts Field Recycled . | . . . Retrieved Matter . | . . . Parts Self-Destructed 5 | . . 5 Prevented . | . . . Parts Restored . | . . . Kills | -11 -10 -10 ------- Run | Yrd Mat Sub Combat Hostiles Destroyed 18 | . 15 3 Guns 10 | . 10 . AOE 8 | . 5 3 Classes Destroyed 10 | 2 7 1 Worker 1 | . 1 . Builder 3 | . 3 . Tunneler 2 | 2 . . Hauler 2 | . 2 . Recycler 1 | 1 . . Operator 1 | . 1 . Watcher 1 | . 1 . Swarmer 9 | . 9 . Grunt 6 | . 6 . Subdweller 3 | . . 3 Best Kill Streak 4 | 1 4 2 Combat Bots Only 3 | . 3 2 Max Kills in Single Turn 3 | 1 3 1 Gunslinging . | . . . Exploded 2 | . 2 1 Melee . | . . . Uniques/NPCs Destroyed . | . . . Combat | -11 -10 -10 -------- Run | Yrd Mat Sub Hostile Shots Fired 108 | . 92 16 Missed 26 | . 22 4 Hits 82 | . 70 12 Projectile 82 | . 70 12 Critical Strikes 2 | . 2 . Damage Taken 1292 | . 932 360 Core 275 | . 136 139 Absorbed by Shields . | . . . Core Remaining (%) 100 | 100 . . Volleys Fired 104 | 19 76 9 Largest 2 | 2 2 1 Hottest 100 | 70 100 33 Shots Fired 195 | 38 147 10 Gun 178 | 38 138 2 Cannon . | . . . Launcher 12 | . 4 8 Special 5 | . 5 . Kinetic 162 | 22 138 2 Thermal 21 | 16 5 . Explosive 12 | . 4 8 Electromagnetic . | . . . Robot Hit Streak 12 | 5 12 2 Robot Miss Streak 9 | 4 9 1 Penetration Max . | . . . Secondary Targets 3 | . 3 . Max Gunslinging Chain 1 | . 1 . Shots Hit Robots 112 | 18 91 3 Core Hits 44 | 5 34 5 Critical Kills . | . . . Critical Parts Destroyed 1 | . 1 . Critical Strikes 2 | 1 1 . Burn 1 | 1 . . Destroy 1 | . 1 . Melee Attacks 7 | . . 7 Impact . | . . . Slashing 7 | . . 7 Piercing . | . . . Sneak Attacks . | . . . Combat Hostiles . | . . . Follow-up Attacks . | . . . Damage Inflicted 2222 | 186 1686 350 Guns 1352 | 186 1166 . Cannons . | . . . Explosions 870 | . 520 350 Melee . | . . . Ramming . | . . . Kinetic 1289 | 123 1166 . Thermal 63 | 63 . . Explosive 870 | . 520 350 Electromagnetic . | . . . Impact . | . . . Slashing . | . . . Piercing . | . . . Highest Corruption 2 | . 2 2 Average Corruption 2 | . 2 2 Corruption Purged . | . . . Corruption Blocked . | . . . Effects 32 | . 10 22 Message Errors 11 | . 4 7 Matter Fused 9 | . 2 7 Heat Flow Errors 4 | . 2 2 Energy Discharges 3 | . 1 2 Data Loss (minor) 3 | . 1 2 Data Loss (major) 1 | . . 1 Misfires 1 | . . 1 Overload Shots . | . . . Overflow Damage 104 | . 98 6 Projectiles . | . . . Explosions 104 | . 98 6 Melee . | . . . Knockbacks . | . . . Impact . | . . . Kinetic . | . . . Secondary . | . . . Self-Inflicted Damage 196 | . 196 . Shots 2 | . 2 . Rammed . | . . . Targets Rammed . | . . . Kicked . | . . . Crushed . | . . . Highest Temperature 271 | 92 271 151 Average Temperature 36 | 40 32 78 Received Heat Transfer 378 | . 300 78 Siege Activations . | . . . Martial Activations . | . . . Shielding Activations . | . . . Robots Disrupted . | . . . Combat Hostiles . | . . . Robots Corrupted . | . . . Combat Hostiles . | . . . Parts Fried . | . . . Impact Corruptions . | . . . Robots Melted . | . . . Combat Hostiles . | . . . Parts Melted . | . . . Heat Transferred 259 | 259 . . Parts Sabotaged . | . . . Parts Stolen . | . . . Parts Stripped . | . . . Power Chain Reactions . | . . . Alert | -11 -10 -10 ------- Run | Yrd Mat Sub Maximum Alert Level . | . . . Low Security (%) 100 | 100 100 . Level 1 . | . . . Level 2 . | . . . Level 3 . | . . . Level 4 . | . . . Level 5 . | . . . High Security . | . . . Max Security . | . . . Peak Influence 141 | 5 141 . Initial . | . . . Average 36 | . 39 . Influence Increases 566 | 15 551 . Destroy 0b10 Robot/C 300 | . 300 . Destroy 0b10 Robot/NC 55 | 15 40 . Destroy Leader 56 | . 56 . Successful Hack 17 | . 17 . Disable Machine 45 | . 45 . Destroy Structure 78 | . 78 . Lose Combat Pursuer 15 | . 15 . Influence Decreases 566 | 15 479 72 Entered New Map 36 | . . 36 Time Decay 494 | 15 449 30 Lost Part 36 | . 30 6 Squads Dispatched 2 | . 2 . Investigation 1 | . 1 . Extermination . | . . . Reinforcement 1 | . 1 . Assault . | . . . Garrison . | . . . Intercept . | . . . Searches Triggered . | . . . Construction Impeded . | . . . Haulers Reinforced . | . . . Active Scanning Responses . | . . . Cargo Convoy Interrupts . | . . . Stealth | -11 -10 -10 --------- Run | Yrd Mat Sub Distress Signals . | . . . Communications Jammed . | . . . Distress Signals . | . . . Times Spotted 30 | . 23 7 Peak Tracking Total 4 | . 4 4 Tactical Retreats 1 | . 1 . Traps | -11 -10 -10 ------- Run | Yrd Mat Sub Traps Triggered 6 | . 4 2 Indirectly . | . . . Trap Hack Attempts . | . . . Triggered . | . . . Disarmed . | . . . Reprogrammed . | . . . Reused . | . . . Traps Extracted . | . . . Installed . | . . . Triggered . | . . . Machines | -11 -10 -10 ---------- Run | Yrd Mat Sub Machines Disabled 3 | . 3 . Max in Single Turn 3 | . 3 . Machines Repaired . | . . . Machines Dismantled . | . . . Machines Sabotaged . | . . . Overloaded Fab Kills . | . . . Hacking | -11 -10 -10 --------- Run | Yrd Mat Sub Machines Accessed 6 | . 4 2 Terminals 4 | . 4 . Fabricators . | . . . Repair Stations . | . . . Recycling Units . | . . . Scanalyzers . | . . . Garrison Access . | . . . Total Hacks 23 | . 10 13 Successful 17 | . 4 13 Failed 6 | . 6 . Catastrophic 2 | . 2 . Database Lockouts . | . . . Manual 5 | . 5 . Terminals 10 | . 10 . Fabricators . | . . . Repair Stations . | . . . Recycling Units . | . . . Scanalyzers . | . . . Garrison Access . | . . . Terminal Hacks 16 | . 3 13 Record 12 | . . 12 Robot Schematic 1 | . 1 . Robot Analysis 2 | . 2 . Proto ID Catalog 1 | . . 1 Fabricator Hacks . | . . . Repair Station Hacks . | . . . Recycling Unit Hacks . | . . . Scanalyzer . | . . . Garrison Access Hacks . | . . . Unauthorized Hacks 1 | . 1 . Terminals 1 | . 1 . Track 1 | . 1 . Fabricators . | . . . Repair Stations . | . . . Recycling Units . | . . . Scanalyzers . | . . . Garrison Access . | . . . Data Cores Recovered . | . . . Used . | . . . Hacking Detections 4 | . 4 . Full Trace Events . | . . . Feedback Events . | . . . Feedback Blocked . | . . . Robot Schematics Acquired 1 | . 1 . Robots Built . | . . . Authchips . | . . . Time . | . . . Total Robot Build Rating . | . . . Part Schematics Acquired . | . . . Parts Built . | . . . Authchips . | . . . Time . | . . . Total Part Build Rating . | . . . Part Studies Acquired . | . . . Parts Repaired . | . . . Time . | . . . Parts Recycled . | . . . Recycled Matter . | . . . Retrieved Matter . | . . . Retrieved Components . | . . . Parts Scanalyzed . | . . . Part Schematics Acquired . | . . . Parts Damaged . | . . . Bothacking | -11 -10 -10 ------------ Run | Yrd Mat Sub Used RIF Installer . | . . . Robots Hacked . | . . . Non-combat . | . . . Combat . | . . . Robot Hacks Applied . | . . . Relay Couplers Released . | . . . Fabnet Peak Effective % . | . . . Robots Rewired . | . . . Allies Hacked . | . . . Hacks Repelled . | . . . Allies | -11 -10 -10 -------- Run | Yrd Mat Sub Total Allies . | . . . Largest Group . | . . . Highest-Rated Group . | . . . Highest-Rated Ally . | . . . Total Orders . | . . . Ally Attacks . | . . . Total Damage . | . . . Kills . | . . . Allies Corrupted . | . . . Allies Melted . | . . . Intel | -11 -10 -10 ------- Run | Yrd Mat Sub Active Infowar (turns) 1962 | 53 945 964 Optics 1158 | . 194 964 Terrain 667 | 23 644 . Seismic 137 | 30 107 . Robot Analysis Total 2 | . 2 . Derelict Logs Recovered . | . . . Drone Launches . | . . . Drone Recoveries . | . . . Exploration | -11 -10 -10 ------------- Run | Yrd Mat Sub Turns Passed 3241 | 117 1523 1601 Spaces Moved 1773 | 46 759 968 Core . | . . . Treads 1663 | . 695 968 Legs 110 | 46 64 . Wheels . | . . . Hover . | . . . Flight . | . . . Fastest Speed 120 | 120 120 160 Average Speed 157 | 120 156 160 Slowest Speed 240 | 120 240 240 Overloaded Moves . | . . . Propulsion Burnouts . | . . . Robots Hopped . | . . . Potential Cave-ins . | . . . Cave-ins Triggered . | . . . Exploration Rate (%) 42 | 4 60 62 Regions Visited 2 Branch Regions 1 Pre-discovered Areas 1 | . . 1 Known Exits Taken . | . . . Unknown Exits Taken 2 | 1 1 . Scrap Searched 2 | . . 2 Spaces Dug 9 | . 9 . Terrain Destroyed 117 | . 76 41 Melee . | . . . Projectile 5 | . 5 . AOE 112 | . 71 41 Terrain Rammed . | . . . Walls Destroyed . | . . . Machines Disabled . | . . . Actions | -11 -10 -10 --------- Run | Yrd Mat Sub Total 2017 | 72 945 1000 Wait 68 | 3 65 . Move 1771 | 45 758 968 Hop . | . . . Pick Up 17 | 2 12 3 Fast Attach 8 | 1 6 1 Attach 2 | . 1 1 Detach 1 | . . 1 Swap 27 | 2 18 7 Drop 12 | . 9 3 Fire 104 | 19 76 9 Melee 7 | . . 7 Ram . | . . . Kick . | . . . Crush . | . . . Escape Stasis . | . . . Rewire . | . . . Trap . | . . . Miscellaneous . | . . . Route ------- -11/Scrapyard -10/Materials (discovered 2 exits: [*Min] / *Sub) -10/Subcaves (discovered 2 exits: [*Mat x2]) History --------- Turn | Location | Event 1 | -11/Scrapyard | Discovered new exit (range 3) 118 | -11/Scrapyard | Entered Materials 323 | -10/Materials | Build established: Mutant 327 | -10/Materials | Discovered new exit (range 15) 824 | -10/Materials | Discovered new exit (range 6) 879 | -10/Materials | Core integrity fell below 50% 1641 | -10/Materials | Entered Subcaves 1817 | -10/Subcaves | A swath of the cavern ceiling suddenly collapsed 1906 | -10/Subcaves | Discovered new exit (range 8) 1963 | -10/Subcaves | Visited 4L-MR0's lab 2149 | -10/Subcaves | Ambushed by Subdweller buried in earth 2395 | -10/Subcaves | Visited Clippyterm 2400 | -10/Subcaves | Learned location of Section 7 (-3) 2400 | -10/Subcaves | Learned Factory fabricator intel 2480 | -10/Subcaves | Discovered new exit (range 12) 2587 | -10/Subcaves | Shifting Twisted Machinery released Mak. Kinetic Plating 2588 | -10/Subcaves | Shifting Twisted Machinery released Battle Rifle 3155 | -10/Subcaves | A swath of the cavern ceiling suddenly collapsed 3238 | -10/Subcaves | Core integrity fell below 20% 3242 | -10/Subcaves | Destroyed by Y1-ZNH(R) with Subdweller Beam Cannon Last Messages --------------- 02597_ Dropped Autogun. 02601_ Acquired Mak. Kinetic Plating. 02605_ Discarded Visual Processing Unit. 02606_ Subatomizers dissect the Autogun. 02613_ Acquired Autogun. 02616_ Subatomizers dissect the Autogun. 02630_ Subatomizers dissect the Autogun, destroying it. 02738_ System corrupted: Energy discharge (-38). 02797_ System corrupted: Matter fused (-8). 02899_ System corrupted: Heat flow error (+188). 02921_ HO-3D2(u) deconstructs Twisted Machinery. 02977_ System corrupted: Component data lost. 03038_ GG2DQM&%O TQ5I%XM0,S15GQLYC D 03054_ System corrupted: Matter fused (-5). 03071_ RXFZWPD9ATS,MZLIFSE B2V#9QPGAAHG B5YO 03117_ System corrupted: Matter fused (-5). A swath of the cavern ceiling suddenly collapses. 03236_ MC #PVIE B7JUXKRPSERZY48KNFXTBMRVXFMG Map ----- +----------------------------------------------------+ | ???????????????????????????????????????????????? | | ???????????????????????????????????????????????? | | ???????????????????????????????????????????????? | | ??????????????????????###??????????????????????? | | ??????????????????????# ##????????????????????? | | ?????????????????????## """????????????????????? | | ????????????????????## ""#####????????????????? | | ???????????????????## ""#" ?????????????????? | | ???????????????????# ""??????????????????? | | ???????????????????# ???????????????????? | | ????????????????????# ##??????????????????? | | ??????????????????### #??????????????????? | | ?????????????????## ###""??????????????? | | ?????????????????# """""??????????????? | | ?????????????????# ### """""??????????????? | | ?????????????????# ##?# #"???????????????? | | ?????????????????# R #?? #"" ?????????????? | | ?????????????????# R #### " ????????????? | | ????????????????## R RR" #"##??????????????? | | ???????????????## """#?#???????????????? | | ???????????????# """#?????????????????? | | ???????????????# < ""#?????????????????? | | ???????????????# " "##?????????????????? | | ???????????????# #?????????????????? | | ???????????????# ######?????????????????? | | ???????????????## @#??????????????????????? | | ????????????????### #??????????????????????? | | ??????????????????# ######?#???????????????? | | ??????????????????# # # ###?????????????? | | ??????????????????#"## #?????????????? | | ??????????????????#"?#;; #?????????????? | | ??????????????????##?#### # #?????????????? | | ???????????????????????##" # ##?? #????????????? | | ???????????????????#####"#####?????????????????? | | ???????????????????#"#""##?????????????????????? | | ???????????????????#""#"#??????????????????????? | | ?????????????????####""##""#???????????????????? | | ?????????????????# """""""#????????????????????? | | ?????????????????### ##""##????????????????????? | | ????????????????###""#?#"#?????????????????????? | | ????????????????? # ##??##?????????????????????? | | ?????????????????##"#??????????????????????????? | | ?????????????????#""#??????????????????????????? | | ?????????????????##"#??????????????????????????? | | ????????????????##"###?????????????????????????? | | ????????????????#""#"#?????????????????????????? | | ????????????????### #??????????????????????????? | | ????????????????# # ##?????????????????????????? | | ????????????????## ###???????????????????????? | | ???????????????## ##??????????????????????? | +----------------------------------------------------+ Best States ------------- Heat Dissipation 25 Energy Generation 14 Energy Capacity 160 Matter Stores 300 Matter Capacity 300 Sight Range 18 Terrain Scan Range 16 Terrain Scan Density 10 Armor Coverage 100 Resistance: KI 10 Evasion (%) 55 Recoil Reduction 2 Item Schematics ----------------- None Robot Schematics ------------------ S-10 Pest | -10/Materials | Hacked Fabricated ------------ Nothing Repaired ---------- Nothing Studied --------- None Alien Tech Used ----------------- None Achievements -------------- Mistaken Identity Challenges ------------ None Game ------ Seed RegenerativeShockboltFrame Manual? 0 Play Time 00:24:32 Cumulative 58.1 hours Start 2026.04.23 @ 23:47:33 End 2026.04.25 @ 21:13:56 Sessions 3 Manual Loads 0 Difficulty Rogue Special Mode None Game No. 72 Rogue 72 Adventurer 0 Explorer 0 Win Type - Total 1 Types 1/0/0/0/0/0/0/0/0/0 Lore% 32 Gallery% 35 Achievement% 29 Wizard Run 0 Options --------- Layout 2 ASCII 0 Keyboard 1 Movement Numpad Keybinds 1 Fullscreen 1 Font 24/Smallcaps Map View 50x44 Zoom Use 0% Tactical HUD 1 Map Filters NONE Filters NONE Steam 1 RUN: bdb143a2-c0bf-4a77-b60b-5832b15c4c77